Cogmind - Beta 13 @@@ ROGUE MODE // 2024.03.31 @ 16:31:00 Player: YenYu Result: Self-destructed Performance ------------- Evolutions (1) 500 Regions Visited (3) 600 Robots Destroyed (35) 175 Value Destroyed (852) 852 Prototype IDs (1) 20 Alien Tech Used (0) 0 Bonus (0) 0 TOTAL SCORE: 2147 Bonus ------- None Cogmind --------- Core Integrity 298/400 Matter 181/300 Energy 100/100 System Corruption 0% Temperature Cool (25) Movement Walking (120) Location -9/Materials Parts ------- > --- POWER (1) -------- (None) > --- PROPULSION (3) --- Carbon-fiber Leg > --- UTILITY (3) ------ Sensor Drone Bay (19/20) > --- WEAPON (2) ------- (None) > --- INVENTORY (5) ---- Compact Matter Pod (150) Compact Matter Pod (0) Seismic Detector Peak State ------------ > --- POWER ------------ Light Nuclear Core > --- PROPULSION ------- Aluminum Leg Carbon-fiber Leg > --- UTILITY ---------- Heat Sink Long-range Tractor Beam Sensor Drone Bay > --- WEAPON ----------- Particle Gun Grenade Launcher > --- INVENTORY -------- Huge Storage Unit Compact Matter Pod Seismic Detector Light Armor Plating [Rating: 22] Favorites ----------- Power Ion Engine Engine Ion Engine Power Core Light Nuclear Core Propulsion Aluminum Leg Leg Aluminum Leg Wheel Wheel Utility Heat Sink Device Heat Sink Storage Huge Storage Unit Protection Light Armor Plating Weapon Grenade Launcher Energy Gun Medium Laser Ballistic Cannon Improved Light Cannon Launcher Grenade Launcher Build | -11 -10 -10 -9 ------- Run | Yrd Mat Min Mat Slots Evolved 2 | . . . 2 Power . | . . . . Propulsion 1 | . . . 1 Utility 1 | . . . 1 Weapon . | . . . . Parts Attached 27 | 8 3 9 7 Power 4 | 1 1 1 1 Engine 3 | 1 1 . 1 Core 1 | . . 1 . Reactor . | . . . . Propulsion 6 | 3 . 2 1 Treads . | . . . . Leg 5 | 2 . 2 1 Wheel 1 | 1 . . . Hover . | . . . . Flight . | . . . . Utility 10 | 2 1 4 3 Device 7 | 2 1 3 1 Storage 2 | . . 1 1 Processor . | . . . . Hackware . | . . . . Protection 1 | . . . 1 Artifact . | . . . . Weapon 7 | 2 1 2 2 Energy Gun 4 | 2 1 1 . Energy Cannon . | . . . . Ballistic Gun . | . . . . Ballistic Cannon 1 | . . . 1 Launcher 2 | . . 1 1 Special Weapon . | . . . . Impact Weapon . | . . . . Slashing Weapon . | . . . . Piercing Weapon . | . . . . Special Melee Weapon . | . . . . Unidentified Prototypes 1 | . . 1 . Parts Lost 12 | . 3 1 8 Power 3 | . 1 . 2 Propulsion 2 | . . . 2 Utility 3 | . 1 . 2 Weapon 4 | . 1 1 2 Highest Loss Streak 7 | . 2 1 7 To Critical Strikes . | . . . . Average Slot Usage (%) 89 | . 90 93 81 Engine 6 | . 11 6 3 Core 6 | . . 7 7 Leg 26 | . 28 28 24 Device 24 | . 22 27 21 Protection 2 | . . . 9 Energy Gun 9 | . 25 8 . Ballistic Cannon 1 | . . . 6 Launcher 9 | . . 13 8 Naked Turns . | . . . . Heaviest Build 103 | 11 12 26 103 Greatest Support 35 | 20 20 25 35 Greatest Overweight (x) 2 | . . 1 2 Average Overweight (x) . | . . . . Largest Inventory Capacity 25 | 5 5 25 25 Average Capacity 5 | 5 5 5 5 Most Carried 5 | 4 5 5 5 Average Carried 3 | 1 3 4 4 Final Capacity 5 | 5 5 5 5 Final Carried 5 | 2 5 4 3 Class Distribution -------------------- 51% | Scavenger-Mutant 48% | Mutant Dominant Class ---------------- Mutant | -10/Materials Scavenger-Mutant | -10/Mines Mutant | -9/Materials Resources | -11 -10 -10 -9 ----------- Run | Yrd Mat Min Mat Matter Collected 616 | 280 30 134 172 Remotely 192 | 20 . . 172 Salvage Created 881 | 188 340 154 199 Parts 59 | 14 20 15 10 Haulers Intercepted 1 | . 1 . . Recyclers Shooed 2 | 1 . . 1 Parts Field Recycled . | . . . . Retrieved Matter . | . . . . Parts Self-Destructed . | . . . . Prevented . | . . . . Kills | -11 -10 -10 -9 ------- Run | Yrd Mat Min Mat Combat Hostiles Destroyed 22 | . 6 7 9 Guns 6 | . 6 . . Cannons 2 | . . . 2 AOE 14 | . . 7 7 Classes Destroyed 8 | 3 4 1 . Worker 3 | 2 . 1 . Tunneler 5 | 4 . 1 . Hauler 1 | . 1 . . Recycler 1 | 1 . . . Operator 1 | . 1 . . Watcher 2 | . 1 . 1 Swarmer 3 | . . 3 . Grunt 19 | . 6 4 9 Best Kill Streak 6 | 3 4 3 6 Combat Bots Only 6 | . 4 2 6 Max Kills in Single Turn 2 | 1 2 2 2 Gunslinging 1 | . 1 . . Exploded 2 | . . 1 2 Melee . | . . . . Uniques/NPCs Destroyed . | . . . . Combat | -11 -10 -10 -9 -------- Run | Yrd Mat Min Mat Hostile Shots Fired 171 | . 53 26 92 Missed 63 | . 18 8 37 Damage Taken 1390 | . 447 180 763 Core 193 | . 70 21 102 Absorbed by Shields . | . . . . Core Remaining (%) 81 | 100 . 63 . Volleys Fired 91 | 15 35 14 27 Largest 2 | 2 2 2 2 Hottest 115 | 100 115 115 69 Shots Fired 151 | 30 62 20 39 Gun 104 | 30 62 12 . Cannon 26 | . . . 26 Launcher 21 | . . 8 13 Special . | . . . . Kinetic 26 | . . . 26 Thermal 104 | 30 62 12 . Explosive 21 | . . 8 13 Electromagnetic . | . . . . Robot Hit Streak 16 | 15 16 3 4 Robot Miss Streak 5 | 4 5 5 3 Penetration Max . | . . . . Secondary Targets 1 | . 1 . . Max Gunslinging Chain 1 | . 1 . . Shots Hit Robots 74 | 18 32 8 16 Core Hits 57 | 7 18 14 18 Critical Kills . | . . . . Critical Parts Destroyed . | . . . . Critical Strikes 7 | 2 4 1 . Burn 7 | 2 4 1 . Melee Attacks . | . . . . Impact . | . . . . Slashing . | . . . . Piercing . | . . . . Sneak Attacks . | . . . . Combat Hostiles . | . . . . Follow-up Attacks . | . . . . Damage Inflicted 2075 | 226 423 456 970 Guns 742 | 226 423 93 . Cannons 173 | . . . 173 Explosions 1117 | . . 356 761 Melee . | . . . . Ramming 43 | . . 7 36 Kinetic 173 | . . . 173 Thermal 904 | 226 423 93 162 Explosive 955 | . . 356 599 Electromagnetic . | . . . . Impact . | . . . . Slashing . | . . . . Piercing . | . . . . Highest Corruption . | . . . . Average Corruption . | . . . . Corruption Purged . | . . . . Corruption Blocked . | . . . . Overload Shots . | . . . . Overflow Damage 39 | . . . 39 Projectiles . | . . . . Explosions 39 | . . . 39 Melee . | . . . . Knockbacks 5 | . . 1 4 Impact 2 | . . 1 1 Kinetic 3 | . . . 3 Secondary . | . . . . Self-Inflicted Damage 100 | . . . 100 Shots 1 | . . . 1 Rammed . | . . . . Targets Rammed 6 | . . 2 4 Kicked 6 | . . 2 4 Crushed . | . . . . Highest Temperature 462 | 220 462 55 57 Average Temperature 107 | 93 169 18 20 Received Heat Transfer 630 | . 273 57 300 Effects 2 | . 2 . . Shutdowns 1 | . 1 . . Interference 1 | . 1 . . Siege Activations . | . . . . Robots Corrupted . | . . . . Combat Hostiles . | . . . . Parts Fried . | . . . . Impact Corruptions . | . . . . Robots Melted 1 | 1 . . . Combat Hostiles . | . . . . Parts Melted 4 | . 4 . . Heat Transferred 2777 | 814 1517 296 150 Parts Sabotaged . | . . . . Parts Stolen . | . . . . Parts Stripped . | . . . . Power Chain Reactions . | . . . . Alert | -11 -10 -10 -9 ------- Run | Yrd Mat Min Mat Peak Influence 352 | 35 156 235 352 Initial 60 | . 22 60 31 Average 99 | 10 94 112 111 Maximum Alert Level 1 | . . 1 1 Low Security (%) 88 | 100 100 90 72 Level 1 11 | . . 9 27 Level 2 . | . . . . Level 3 . | . . . . Level 4 . | . . . . Level 5 . | . . . . High Security . | . . . . Max Security . | . . . . Squads Dispatched 4 | . . . 4 Investigation 3 | . . . 3 Extermination . | . . . . Reinforcement 1 | . . . 1 Assault . | . . . . Garrison . | . . . . Intercept . | . . . . Searches Triggered . | . . . . Construction Impeded . | . . . . Haulers Reinforced . | . . . . Active Scanning Responses . | . . . . Cargo Convoy Interrupts . | . . . . Stealth | -11 -10 -10 -9 --------- Run | Yrd Mat Min Mat Distress Signals 1 | . 1 . . Communications Jammed . | . . . . Distress Signals . | . . . . Times Spotted 32 | . 8 8 16 Peak Tracking Total 7 | . 4 3 7 Tactical Retreats 1 | . . 1 . Traps | -11 -10 -10 -9 ------- Run | Yrd Mat Min Mat Traps Triggered . | . . . . Indirectly . | . . . . Trap Hack Attempts . | . . . . Triggered . | . . . . Disarmed . | . . . . Reprogrammed 6 | . 6 . . Reused . | . . . . Traps Extracted . | . . . . Installed . | . . . . Triggered . | . . . . Machines | -11 -10 -10 -9 ---------- Run | Yrd Mat Min Mat Machines Disabled 3 | . . . 3 Max in Single Turn 2 | . . . 2 Machines Repaired . | . . . . Machines Dismantled . | . . . . Machines Sabotaged . | . . . . Overloaded Fab Kills . | . . . . Hacking | -11 -10 -10 -9 --------- Run | Yrd Mat Min Mat Machines Accessed 7 | . 2 1 4 Terminals 5 | . 2 . 3 Fabricators . | . . . . Repair Stations . | . . . . Recycling Units . | . . . . Scanalyzers 1 | . . . 1 Garrison Access . | . . . . Total Hacks 26 | . 12 1 13 Successful 19 | . 8 1 10 Failed 7 | . 4 . 3 Catastrophic 1 | . . . 1 Database Lockouts . | . . . . Manual 9 | . 5 . 4 Terminals 22 | . 12 . 10 Fabricators . | . . . . Repair Stations . | . . . . Recycling Units . | . . . . Scanalyzers 3 | . . . 3 Garrison Access . | . . . . Terminal Hacks 14 | . 7 1 6 Open Door 1 | . . 1 . Branch Access Points 2 | . 1 . 1 Emergency Access Points 2 | . 2 . . Alert Level 2 | . 1 . 1 Unreport Threat 3 | . 1 . 2 Reprogram Traps 1 | . 1 . . Security Status 1 | . . . 1 Zone Layout 2 | . 1 . 1 Fabricator Hacks . | . . . . Repair Station Hacks . | . . . . Recycling Unit Hacks . | . . . . Scanalyzer 3 | . . . 3 Insert Component 2 | . . . 2 Analyze 1 | . . . 1 Garrison Access Hacks . | . . . . Unauthorized Hacks 2 | . 1 . 1 Terminals 2 | . 1 . 1 Track 2 | . 1 . 1 Fabricators . | . . . . Repair Stations . | . . . . Recycling Units . | . . . . Scanalyzers . | . . . . Garrison Access . | . . . . Data Cores Recovered 1 | . 1 . . Used . | . . . . Hacking Detections 5 | . 1 . 4 Full Trace Events 4 | . . . 4 Feedback Events . | . . . . Feedback Blocked . | . . . . Robot Schematics Acquired . | . . . . Robots Built . | . . . . Authchips . | . . . . Time . | . . . . Total Robot Build Rating . | . . . . Part Schematics Acquired 1 | . . . 1 Parts Built . | . . . . Authchips . | . . . . Time . | . . . . Total Part Build Rating . | . . . . Parts Repaired . | . . . . Time . | . . . . Parts Recycled . | . . . . Recycled Matter . | . . . . Retrieved Matter . | . . . . Retrieved Components . | . . . . Parts Scanalyzed 1 | . . . 1 Part Schematics Acquired 1 | . . . 1 Parts Damaged . | . . . . Bothacking | -11 -10 -10 -9 ------------ Run | Yrd Mat Min Mat Used RIF Installer . | . . . . Robots Hacked . | . . . . Non-combat . | . . . . Combat . | . . . . Robot Hacks Applied . | . . . . Relay Couplers Released . | . . . . Fabnet Peak Effective % . | . . . . Robots Rewired . | . . . . Allies Hacked . | . . . . Hacks Repelled . | . . . . Allies | -11 -10 -10 -9 -------- Run | Yrd Mat Min Mat Total Allies . | . . . . Largest Group . | . . . . Highest-Rated Group . | . . . . Highest-Rated Ally . | . . . . Total Orders 2 | . . 2 . ROAM 1 | . . 1 . RETURN 1 | . . 1 . Ally Attacks . | . . . . Total Damage . | . . . . Kills . | . . . . Allies Corrupted . | . . . . Allies Melted . | . . . . Intel | -11 -10 -10 -9 ------- Run | Yrd Mat Min Mat Robot Analysis Total . | . . . . Derelict Logs Recovered 3 | . . 3 . Drone Launches 20 | . . 20 . Drone Recoveries 19 | . . 19 . Exploration | -11 -10 -10 -9 ------------- Run | Yrd Mat Min Mat Turns Passed 1636 | 160 274 769 433 Spaces Moved 827 | 82 136 400 209 Core 4 | 4 . . . Treads . | . . . . Legs 812 | 67 136 400 209 Wheels 11 | 11 . . . Hover . | . . . . Flight . | . . . . Fastest Speed 50 | 50 120 120 120 Average Speed 133 | 111 120 124 165 Slowest Speed 260 | 120 120 190 260 Overloaded Moves . | . . . . Propulsion Burnouts . | . . . . Robots Hopped . | . . . . Cave-ins Triggered . | . . . . Exploration Rate (%) 36 | 5 24 96 20 Regions Visited 3 Branch Regions 1 Pre-discovered Areas 2 | . . 2 . Known Exits Taken 2 | . 1 1 . Unknown Exits Taken 1 | 1 . . . Scrap Searched 1 | . . 1 . Spaces Dug 1 | . . . 1 Terrain Destroyed 136 | . . 48 88 Melee . | . . . . Projectile 1 | . . . 1 AOE 135 | . . 48 87 Terrain Rammed . | . . . . Walls Destroyed . | . . . . Machines Disabled . | . . . . Actions | -11 -10 -10 -9 --------- Run | Yrd Mat Min Mat Total 1216 | 121 185 653 257 Wait 216 | 4 6 206 . Move 824 | 81 135 399 209 Hop . | . . . . Pick Up 33 | 11 6 11 5 Fast Attach . | . . . . Attach 19 | 7 3 2 7 Detach 3 | . . 1 2 Swap 8 | 1 . 7 . Drop 16 | 2 . 11 3 Fire 91 | 15 35 14 27 Melee . | . . . . Ram . | . . . . Kick 6 | . . 2 4 Crush . | . . . . Escape Stasis . | . . . . Rewire . | . . . . Trap . | . . . . Miscellaneous . | . . . . Route ------- -11/Scrapyard -10/Materials -10/Mines (discovered 2 exits: *Mat x2) -9/Materials (discovered 3 exits: *Min x2 / Sto) History --------- Turn | Location | Event 30 | -11/Scrapyard | Discovered new exit (range 12) 161 | -11/Scrapyard | Entered Materials 175 | -10/Materials | Identified exit to Mines 314 | -10/Materials | Build established: Mutant 435 | -10/Materials | Entered Mines 446 | -10/Mines | Learned Materials garrison access intel 494 | -10/Mines | Learned location of Storage (-9) 756 | -10/Mines | Build established: Scavenger-Mutant 908 | -10/Mines | Found the Drone Emporium 912 | -10/Mines | Found Prototype Device 913 | -10/Mines | Identified Sensor Drone Bay 974 | -10/Mines | Discovered new exit (range 73) 975 | -10/Mines | Identified exit to Materials 1135 | -10/Mines | Discovered exit to Materials (range 6) 1204 | -10/Mines | Entered Materials 1204 | -9/Materials | Evolved 2 slots: Propulsion x1, Utility x1 1399 | -9/Materials | Identified exit to Mines 1399 | -9/Materials | Identified exit to Storage 1637 | -9/Materials | Self-destructed Last Messages --------------- 01607_ Destroyed Lgt. Armor Plating. 01607_ Terminal disabled. 01607_ G-34 Mercenary destroyed. 01607_ U-05 Engineer lays Concrete. 01607_ U-05 Engineer suffers critical hit (Burn). 01608_ U-05 Engineer builds a Wall. 01609_ U-05 Engineer lays Concrete. 01610_ U-05 Engineer builds a Wall. 01611_ U-05 Engineer lays Concrete. 01613_ U-05 Engineer builds a Wall. 01615_ Aluminum Leg destroyed. 01616_ Dropped Huge Storage Unit. 01617_ U-05 Engineer builds a Wall. 01627_ U-05 Engineer lays Concrete. 01628_ Aluminum Leg destroyed. 01629_ U-05 Engineer lays Concrete. 01629_ Ion Engine destroyed. 01630_ U-05 Engineer lays Concrete. 01637_ Imp. Light Cannon destroyed. 01637_ U-05 Engineer lays Concrete. Map ----- +----------------------------------------------------+ | " #?????#!! # """"" #???? | | " #?????##### # """"" #???? | | " #?????????# # """ #???? | | #?????????# # #???? | | ##?######## + #???? | | ###### # #???? | | ##########???? | | ###### #????????????? | | ###?## ##### #????????????? | | ######+##### #????????????? | | ## # #????????????? | | ## """ # +????????????? | | ###""""" # #????????????? | | ??#""""" + #????????????? | | ??#""""" # = #????????????? | | ??# """ # !###########??? | | ??# # # #??? | | ??# # # ##?? | | ??########### # #?? | | ???????????## # ##?? | | ???????????## + > ##?? | | ???????????# # ##?? | | ???????????## # ##?? | | ????????????# # ##?? | | ????????????# ############?? | | ????????????# #??#" ##@ #?? | | ????????????# ####" # ##? | | ????????????# ## g! ;#? | | ???????????## ## gg ;#? | | ?? ####### # gY ; # | | #% u ;## | | T uu Y ; # | | # ; # | | [ ####### # ; # | | ? ????????## ## ;## | | ????????????# ###; ;;;#? | | ????????????# #?####; ###? | | ????????????# #????######??? | | ????????????# #????????????? | | ????????????+ #????????????? | | ????????????# #????????????? | | ????????????# #????????????? | | ????????????# ?????????????? | | ????????????# ?????????????? | | ????????????# ?????????????? | | ????????????# ?????????????? | | ????????????? ?????????????? | | ?????????????????????????????? | | ?????????????????????????????? | | ?????????????????????????????? | +----------------------------------------------------+ Best States ------------- Heat Dissipation 38 Energy Generation 14 Energy Capacity 250 Matter Stores 300 Matter Capacity 300 Sight Range 16 Terrain Scan Range 16 Terrain Scan Density 10 Armor Coverage 150 Evasion (%) 55 Item Schematics ----------------- Huge Storage Unit | -9/Materials | Scanalyzed Robot Schematics ------------------ None Fabricated ------------ Nothing Alien Tech Used ----------------- None Achievements -------------- Release The Drones! Use The Force Challenges ------------ None Game ------ Seed ClaymoresAssembledAutobeam Manual? 0 Play Time 00:26:04 Cumulative 6.8 hours Start 2024.03.31 @ 16:06:27 End 2024.03.31 @ 16:31:00 Sessions 1 Manual Loads 0 Difficulty Rogue Special Mode None Game No. 9 Rogue 9 Adventurer 0 Explorer 0 Win Type - Total 0 Types 0/0/0/0/0/0/0/0/0 Lore% 5 Gallery% 11 Achievement% 10 Wizard Run 0 Options --------- Layout 0 ASCII 0 Keyboard 0 Movement Mouse Keybinds 0 Fullscreen 1 Font 24/Smallcaps Map View 76x50 Zoom Use 0% Tactical HUD 1 Map Filters NONE Filters NONE Steam 1 RUN: 16da96b8-df68-4356-8592-86364c46bf89